{"text_format":"1","workbook":"xlsx","n_sheets":1,"sheets":["Seznam vozidel"],"not_rendered":{"charts":0,"images":0,"macros":0,"external_links":0,"defined_names":1,"comments":0,"pivot_tables":0},"unopened":[],"bounds":{"document_bytes":16777216,"sheet_cells":100000,"rows_first":2000,"rows_last":500,"rows_between":2000,"halvings":0,"cell_chars":16384,"cell_head_chars":4096},"cells_cut":0,"cells_raw":0,"read":"whole","date_system":"1900"}

{"sheet":"Seznam vozidel","index":0,"n_rows":50,"n_cols":31,"rows_kept":50,"cut":false,"hidden":false,"merged":[[49,23,49,25],[49,26,49,30],[2,7,2,25],[48,23,48,25],[1,4,1,5]]}
[]
[null,null,null,null,"Západočeská univerzita v Plzni",null,null,"Příloha č. 1 technických podmínek pro poskytování služeb - Pojištění motorových vozidel"]
[null,null,"Příloha č. 2-2 ZD - Tabulka pro výpočet nabídkové ceny - soubor vozidel (ve znění ke dni 12.09.2025)",null,null,null,null,"Seznam vozidel Západočeská univerzita v Plzni"]
[]
["č","Vlastník RČ/IČ","Vlastník","Držitel RČ/IČ","Držitel","RZ (SPZ)","č.TP","VIN","Značka","Model","Kategorie","Rok výr.","Obsah","Výkon","Hmotnost","Počet míst","Palivo","POV","Pč vozidla  včetně DPH","HAV","SKLA","Limit Skla","ASISTENCE","ÚRAZ","ZAVAZADLA","ČINNOST PRACOVNÍHO STROJE","Pojistné      POV","Pojistné      HAV","Pojistné     SKLA","Pojistné     ÚRAZ","Pojistné ZAVAZADLA"]
[1,"49777513","Západočeská univerzita v Plzni","49777513","Západočeská univerzita v Plzni","1P42980","BF745076","TKMM2520D41MR3043","MARO","MARO M ","Přívěs",2005,0,0,2000,null,null,"ANO",null,"",null,null,"ANO"]
[{"$f":"A6+1","v":2},"49777513","Západočeská univerzita v Plzni","49777513","Západočeská univerzita v Plzni","5P13991","UE620699","TMBJC25JXC3075896","SKODA","FABIA II COMBI","Osobní vozidlo",2011,1390,63,1579,5,"Benzín","ANO",113000,"ANO","ANO",12000,"ANO","ANO","ANO"]
[{"$f":"A7+1","v":3},"49777513","Západočeská univerzita v Plzni","49777513","Západočeská univerzita v Plzni","7AS8381","UJ752404","TMBAP6NH2K4055174","SKODA","RAPID","Osobní vozidlo",2019,999,70,1644,5,"Benzín","ANO",261000,"ANO","ANO",14000,"ANO","ANO","ANO"]
[4,"49777513","Západočeská univerzita v Plzni","49777513","Západočeská univerzita v Plzni","FZSP1ZEN","UM721317","WV1ZZZSYZN9042259","VOLKSWAGEN","CRAFTER SANITKA včetně vybavení ","Užitkový",2022,2287,130,3500,5,"Nafta","ANO",5781968,"ANO","ANO","bez limitní","ANO","ANO","ANO"]
[5,"49777513","Západočeská univerzita v Plzni","49777513","Západočeská univerzita v Plzni","4P97330","UG710175","TM1V02440BP000003","Agados","Dona","Přívěs",2011,0,0,1000,null,null,"ANO",null,"",null,null,"ANO"]
[6,"49777513","Západočeská univerzita v Plzni","49777513","Západočeská univerzita v Plzni","5P44156","UE934100","TMBEM25J4D3024636","SKODA","FABIA II","Osobní vozidlo",2012,1197,63,1571,5,"Benzín","ANO",137000,"ANO","ANO",12000,"ANO","ANO","ANO"]
[7,"49777513","Západočeská univerzita v Plzni","49777513","Západočeská univerzita v Plzni","6P35528","UE946829","TMBAH93T2D9026351","SKODA","SUPERB II","Osobní vozidlo",2012,1984,147,2118,5,"Benzín","ANO",211000,"ANO","ANO",16000,"ANO","ANO","ANO"]
[8,"49777513","Západočeská univerzita v Plzni","49777513","Západočeská univerzita v Plzni","3P00848","UB726507","ZFA22300005406749","FIAT","DOBLO","Užitkový",2007,1248,55,2170,2,"Nafta","ANO",120000,"ANO","ANO",12000,"ANO","ANO","ANO"]
[9,"49777513","Západočeská univerzita v Plzni","49777513","Západočeská univerzita v Plzni","9P14108","UN301146","WF0YXXTTGYNR65684","FORD","TRANSIT CUSTOM 280 DIESEL","Užitkový",2023,1995,95,2800,3,"Nafta","ANO",750000,"ANO","ANO",20000,"ANO","ANO","ANO",""]
[10,"49777513","Západočeská univerzita v Plzni","49777513","Západočeská univerzita v Plzni","P002789","ZA282019","JCB3CX12TH2495834","JCB","3CX COMPACT","Pracovní stroje (rypadlo kolové)",2018,2482,54,6500,1,"Nafta","ANO",2100000,"ANO","ANO","bez limitní","ANO","ANO","ANO","ANO"]
[11,"49777513","Západočeská univerzita v Plzni","49777513","Západočeská univerzita v Plzni","6P84381","UH756081","VF3YB2MRB12C95070","PEUGEOT","BOXER 3300 DIESEL","Osobní vozidlo",2017,1997,96,3300,6,"Nafta","ANO",360000,"ANO","ANO","bez limitní","ANO","ANO","ANO"]
[12,"49777513","Západočeská univerzita v Plzni","49777513","Západočeská univerzita v Plzni","42PMA78","AN299011","TK9NE0000S0300047","SATURN","I I ","Přívěs",1997,0,0,600,null,null,"ANO",null,""]
[13,"49777513","Západočeská univerzita v Plzni","49777513","Západočeská univerzita v Plzni","4P07525","UB916754","TMBBE61Z582014275","SKODA","OCTAVIA DIESEL II","Osobní vozidlo",2007,1968,103,1968,5,"Nafta","ANO",70000,"ANO","ANO",12000,"ANO","ANO","ANO"]
[14,"49777513","Západočeská univerzita v Plzni","49777513","Západočeská univerzita v Plzni","4SI0662","UI404194","TMBAH7NPXJ7526219","SKODA","SUPERB DIESEL III","Osobní vozidlo",2017,1968,110,2115,5,"Nafta","ANO",390000,"ANO","ANO",15000,"ANO","ANO","ANO"]
[15,"49777513","Západočeská univerzita v Plzni","49777513","Západočeská univerzita v Plzni","3P53871","UC084824","TKXNP71757ANS5534","AGADOS","NP","Přívěs",2008,0,0,300,null,null,"ANO",null,""]
[16,"49777513","Západočeská univerzita v Plzni","49777513","Západočeská univerzita v Plzni","5P38841","UF032627","VF37J5FK0CJ654104","PEUGEOT","PARTNER III TEPEE","Osobní vozidlo",2012,1598,72,2000,5,"Benzín","ANO",167000,"ANO","ANO",15000,"ANO","ANO","ANO"]
[17,"49777513","Západočeská univerzita v Plzni","49777513","Západočeská univerzita v Plzni","2P60058","UG547903","VF654ANA000007801","RENAULT","MASCOTT 90","Nákladní",2005,2953,85,6500,3,"Nafta","ANO",400000,"ANO","ANO",12000,"ANO","ANO","ANO","ANO"]
[18,"49777513","Západočeská univerzita v Plzni","49777513","Západočeská univerzita v Plzni","8P39081","UK196238","TK9UNAG00LKEU3112","Eurotrailers","Eurotrailers","Přívěs",2020,0,0,1500,null,null,"ANO",null,""]
[19,"49777513","Západočeská univerzita v Plzni","49777513","Západočeská univerzita v Plzni","6P78890","UH574240","VSSZZZNHZH1009055","SEAT","TOLEDO IV","Osobní vozidlo",2016,1197,81,1636,5,"Benzín","ANO",230000,"ANO","ANO",13000,"ANO","ANO","ANO"]
[20,"49777513","Západočeská univerzita v Plzni","49777513","Západočeská univerzita v Plzni","5P1172","UC894702","LCS5FAD2X75565243","INCALCU","L7E ","Čtyřkolka",2008,0,4,750,2,"Eletrika","ANO",null,"",null,null,"ANO"]
[21,"49777513","Západočeská univerzita v Plzni","49777513","Západočeská univerzita v Plzni","3P67548","BG187041","TMBBE61Z162132207","SKODA","OCTAVIA DIESEL II","Osobní vozidlo",2005,1968,103,1995,5,"Nafta","ANO",55000,"ANO","ANO",12000,"ANO","ANO","ANO"]
[22,"49777513","Západočeská univerzita v Plzni","49777513","Západočeská univerzita v Plzni","6P43453","UG257715","WF0WXXGBBW6J08155","FORD","MONDEO II","Osobní vozidlo",2006,1798,92,2065,5,"Benzín","ANO",50000,"ANO","ANO",15000,"ANO","ANO","ANO"]
[23,"49777513","Západočeská univerzita v Plzni","49777513","Západočeská univerzita v Plzni","5P89219","UD629793","WV1ZZZ7HZ9H160078","VOLKSWAGEN","TRANSPORTER T5 DIESEL","Užitkový",2009,1896,62,2600,2,"Nafta","ANO",115000,"ANO","ANO",15000,"ANO","ANO","ANO"]
[24,"49777513","Západočeská univerzita v Plzni","49777513","Západočeská univerzita v Plzni","P013469","ZA145477","7100","REHOS SP3","REHOS SP4","Přívěs",2008,0,0,1800,null,null,"ANO",null,""]
[25,"49777513","Západočeská univerzita v Plzni","49777513","Západočeská univerzita v Plzni","5P24661","UE818380","VF3YAUMPA12180112","PEUGEOT","BOXER 3000 DIESEL","Osobní vozidlo",2012,2198,110,3150,9,"Nafta","ANO",250000,"ANO","ANO","bez limitní","ANO","ANO","ANO"]
[26,"49777513","Západočeská univerzita v Plzni","49777513","Západočeská univerzita v Plzni","7AU5205","UJ743497","TMBAP6NHXK4055309","SKODA","RAPID","Osobní vozidlo",2019,999,70,1644,5,"Benzín","ANO",267000,"ANO","ANO",14000,"ANO","ANO","ANO"]
[27,"49777513","Západočeská univerzita v Plzni","49777513","Západočeská univerzita v Plzni","5P31694","UF101646","TKXE22175CANA4656","AGADOS","VZ 22","Přívěs",2012,0,0,750,null,null,"ANO",null,""]
[28,"49777513","Západočeská univerzita v Plzni","49777513","Západočeská univerzita v Plzni","6P03541","UG270387","TM1V01440FP000001","SM TRAILER","SM TRAILER","Přívěs",2015,0,0,650,null,null,"ANO",null,""]
[29,"49777513","Západočeská univerzita v Plzni","49777513","Západočeská univerzita v Plzni","6P51637","UG499788","TMBAB6NH4G4010291","SKODA","RAPID","Osobní vozidlo",2015,1197,81,1645,2,"Benzín","ANO",210000,"ANO","ANO",14000,"ANO","ANO","ANO"]
[30,"49777513","Západočeská univerzita v Plzni","49777513","Západočeská univerzita v Plzni","8P03110","UJ616268","WF0XXXTTGXJB14873","FORD","TRANSIT 290 DIESEL","Užitkový",2018,1995,125,3500,3,"Nafta","ANO",450000,"ANO","ANO","bez limitní","ANO","ANO","ANO"]
[31,"49777513","Západočeská univerzita v Plzni","49777513","Západočeská univerzita v Plzni","P021050","ZB058931","S11202342","ISEKI","ŽACÍ STROJ","Motorový vozík (malotraktor)",2022,1123,14,1280,1,"Nafta","ANO",null,null,null,"",null,"ANO"]
[32,"49777513","Západočeská univerzita v Plzni","49777513","Západočeská univerzita v Plzni","7P24695","UI414767","TMBAR6NH0J4527140","SKODA","RAPID","Osobní vozidlo",2017,999,81,1650,5,"Benzín","ANO",260000,"ANO","ANO",14000,"ANO","ANO","ANO"]
[33,"49777513","Západočeská univerzita v Plzni","49777513","Západočeská univerzita v Plzni","P002044","ZA093416","TX556139","GOLDONI","Aster 40 ","Traktor Kolový",2006,1649,28,230,1,"Nafta","ANO",null,null,null,null,null,"ANO","ANO"]
[34,"49777513","Západočeská univerzita v Plzni","49777513","Západočeská univerzita v Plzni","9P19080","UM796830","WF0YXXTTGYLR11845","FORD","TRANSIT CUSTOM 250 DIESEL","Užitkový",2021,1995,79,2799,3,"Nafta","ANO",450000,"ANO","ANO","bez limitní","ANO","ANO","ANO"]
[35,"49777513","Západočeská univerzita v Plzni","49777513","Západočeská univerzita v Plzni","9P36521","UBI832366","VF1JL000972031157","RENAULT","TRAFIC DIESEL","Osobní vozidlo",2024,1997,81,3020,9,"Nafta","ANO",805000,"ANO","ANO","bez limitní","ANO","ANO","ANO",""]
[36,"49777513","Západočeská univerzita v Plzni","49777513","Západočeská univerzita v Plzni",null,null,"S11102298","ISEKI","SXG 323 HL","Motorový vozík (malotraktor)",2017,1123,15,560,1,"Nafta","ANO",null,""]
[37,"49777513","Západočeská univerzita v Plzni","49777513","Západočeská univerzita v Plzni",null,null,"CH30110209981X","JOHN DEERE","X748 Ultimate","Traktor Kolový",2005,1116,18,510,1,"Nafta","ANO",null,""]
[38,"49777513","Západočeská univerzita v Plzni","49777513","Západočeská univerzita v Plzni","EL089CC","UBI468750","TMBJW7NP0P7027623","SKODA","SUPERB III včetně Drive-in-wire-systému pro autonomního řízení","Osobní vozidlo",2023,"1395","115","1730",5,"Hybridní (B+E)","ANO",3021846,"ANO","ANO",16000,"ANO","ANO","ANO",""]
[39,"49777513","Západočeská univerzita v Plzni","49777513","Západočeská univerzita v Plzni","EL087CC","UBI468751","TMBJW7NP3P7027390","SKODA","SUPERB III včetně Drive-in-wire-systému pro autonomního řízení","Osobní vozidlo",2023,"1395","115","1730",5,"Hybridní (B+E)","ANO",3021846,"ANO","ANO",16000,"ANO","ANO","ANO",""]
[40,"49777513","Západočeská univerzita v Plzni","49777513","Západočeská univerzita v Plzni","5SN2538","UM174313","TMBAR9NP1N7029462","SKODA","SUPERB DIESEL III","Osobní vozidlo",2022,1698,147,2080,5,"Nafta","ANO",772598,"ANO","ANO",20000,"ANO","ANO","ANO",""]
[{"$f":"A45+1","v":41},"49777513","Západočeská univerzita v Plzni","49777513","Západočeská univerzita v Plzni",null,null,"SXG327S000998","ISEKI","SXG 327 HL","Motorový vozík (malotraktor)",2024,1000,15,700,1,"Nafta","ANO"]
[42,"49777513","Západočeská univerzita v Plzni","49777513","Západočeská univerzita v Plzni","8AZ7891","UM151932","TMBAR7NP4N7017410","SKODA","SUPERB","Osobní vozidlo",2021,1968,147,2080,5,"Nafta","ANO",619000,"ANO","ANO",20000,"ANO","ANO","ANO"]
[]
[null,null,null,null,null,null,null,null,null,null,null,null,null,null,null,null,null,null,null,null,null,null,null,"Celkové roční pojistné",null,null,{"$f":"SUM(AA6:AA47)","v":0},{"$f":"SUM(AB6:AB47)","v":0},{"$f":"SUM(AC6:AC47)","v":0},{"$f":"SUM(AD6:AD47)","v":0},{"$f":"SUM(AE6:AE47)","v":0}]
[null,null,null,null,null,null,null,null,null,null,null,null,null,null,null,null,null,null,null,null,null,null,null,"Celkové pojistné za 3 roky",null,null,{"$f":"SUM(AA49:AE49)*3","v":0}]